[Event "*** Titled Tuesday Blitz"]
[Site "Chess.com"]
[Date "2020.05.19"]
[Round "9"]
[White "DDTerziev04"]
[Black "kot60"]
[Result "0-1"]
[WhiteElo "2254"]
[BlackElo "2370"]
[TimeControl "180+1"]
[EndTime "13:46:47 PDT"]
[Termination "kot60 won by resignation"]

1. e4 {[%clk 0:03:00.9]} 1... e5 {[%clk 0:02:59.9]} 2. Nf3 {[%clk 0:02:58.5]}
2... Nc6 {[%clk 0:02:59.8]} 3. Bc4 {[%clk 0:02:58.8]} 3... Be7 {[%clk
0:02:59.4]} 4. O-O {[%clk 0:02:58.6]} 4... Nf6 {[%clk 0:02:59]} 5. d3 {[%clk
0:02:57.4]} 5... d6 {[%clk 0:02:58.7]} 6. c3 {[%clk 0:02:57.4]} 6... O-O {[%clk
0:02:58.3]} 7. Bb3 {[%clk 0:02:57.1]} 7... h6 {[%clk 0:02:58.4]} 8. h3 {[%clk
0:02:57]} 8... Nh7 {[%clk 0:02:58.1]} 9. Nbd2 {[%clk 0:02:56.5]} 9... Bg5 {[%clk
0:02:57.1]} 10. Re1 {[%clk 0:02:56.1]} 10... Bxd2 {[%clk 0:02:56.8]} 11. Bxd2
{[%clk 0:02:55.7]} 11... Qf6 {[%clk 0:02:57.3]} 12. Be3 {[%clk 0:02:52.4]} 12...
Ne7 {[%clk 0:02:53.5]} 13. d4 {[%clk 0:02:51.8]} 13... Ng6 {[%clk 0:02:50.3]}
14. Qe2 {[%clk 0:02:30.1]} 14... Be6 {[%clk 0:02:48.1]} 15. Rad1 {[%clk
0:02:27.7]} 15... Bxb3 {[%clk 0:02:46.3]} 16. axb3 {[%clk 0:02:28.6]} 16... a6
{[%clk 0:02:45.8]} 17. dxe5 {[%clk 0:02:27.3]} 17... dxe5 {[%clk 0:02:45.1]} 18.
Bc5 {[%clk 0:02:26.7]} 18... Rfe8 {[%clk 0:02:44.6]} 19. Be3 {[%clk 0:02:21.1]}
19... Nhf8 {[%clk 0:02:42.3]} 20. Rd2 {[%clk 0:02:19.5]} 20... Ne6 {[%clk
0:02:34.6]} 21. Red1 {[%clk 0:02:18.8]} 21... Nef4 {[%clk 0:02:31.9]} 22. Bxf4
{[%clk 0:02:17.8]} 22... Nxf4 {[%clk 0:02:31.7]} 23. Qf1 {[%clk 0:02:17.7]}
23... Nxh3+ {[%clk 0:02:30.8]} 24. gxh3 {[%clk 0:02:11.1]} 24... Qxf3 {[%clk
0:02:30.2]} 25. Qg2 {[%clk 0:02:12]} 25... Qxg2+ {[%clk 0:02:28.2]} 26. Kxg2
{[%clk 0:02:12.9]} 26... Re7 {[%clk 0:02:19]} 27. Rd7 {[%clk 0:02:12.2]} 27...
Rae8 {[%clk 0:02:17.6]} 28. c4 {[%clk 0:02:05]} 28... f6 {[%clk 0:02:17]} 29.
Kf3 {[%clk 0:02:03.9]} 29... Kf7 {[%clk 0:02:16.2]} 30. Kg4 {[%clk 0:02:00.4]}
30... g6 {[%clk 0:02:11.6]} 31. h4 {[%clk 0:01:58.3]} 31... h5+ {[%clk
0:02:10.8]} 32. Kg3 {[%clk 0:01:57.8]} 32... Ke6 {[%clk 0:02:09.9]} 33. R7d5
{[%clk 0:01:54.3]} 33... Rg8 {[%clk 0:02:03.2]} 34. f4 {[%clk 0:01:50.5]} 34...
Reg7 {[%clk 0:01:47.1]} 35. fxe5 {[%clk 0:01:40.9]} 35... fxe5 {[%clk
0:01:46.6]} 36. Rf1 {[%clk 0:01:31]} 36... c6 {[%clk 0:01:29.7]} 37. Rd3 {[%clk
0:01:26.3]} 37... g5 {[%clk 0:01:29.6]} 38. Rdf3 {[%clk 0:01:15.9]} 38... gxh4+
{[%clk 0:01:27.9]} 39. Kxh4 {[%clk 0:01:15.4]} 39... Rg4+ {[%clk 0:01:02.2]} 40.
Kxh5 {[%clk 0:01:15.4]} 40... Rxe4 {[%clk 0:01:02.1]} 41. Rf7 {[%clk 0:01:14.9]}
41... Kd6 {[%clk 0:00:50.9]} 42. Rxb7 {[%clk 0:00:58.6]} 42... Re2 {[%clk
0:00:49.7]} 43. c5+ {[%clk 0:00:20.1]} 43... Kxc5 {[%clk 0:00:29.7]} 44. b4+
{[%clk 0:00:13.9]} 44... Kd5 {[%clk 0:00:25.5]} 45. Rd7+ {[%clk 0:00:12.3]}
45... Ke6 {[%clk 0:00:24.9]} 0-1

[Event "*** Titled Tuesday Blitz"]
[Site "Chess.com"]
[Date "2020.05.19"]
[Round "9"]
[White "fabianvivasz"]
[Black "bmt011"]
[Result "1-0"]
[WhiteElo "2316"]
[BlackElo "2062"]
[TimeControl "180+1"]
[EndTime "13:46:47 PDT"]
[Termination "fabianvivasz won on time"]

1. e4 {[%clk 0:03:00.9]} 1... e6 {[%clk 0:02:59.9]} 2. d4 {[%clk 0:03:00.3]}
2... d5 {[%clk 0:03:00.4]} 3. Nd2 {[%clk 0:03:00.8]} 3... Nf6 {[%clk 0:03:00.1]}
4. e5 {[%clk 0:03:00.7]} 4... Nfd7 {[%clk 0:03:00.4]} 5. Ngf3 {[%clk 0:03:00]}
5... c5 {[%clk 0:02:59.4]} 6. c3 {[%clk 0:03:00.6]} 6... Nc6 {[%clk 0:02:59.8]}
7. Bd3 {[%clk 0:03:01.2]} 7... cxd4 {[%clk 0:02:51.6]} 8. cxd4 {[%clk
0:03:02.1]} 8... Be7 {[%clk 0:02:42.4]} 9. O-O {[%clk 0:02:59.2]} 9... O-O
{[%clk 0:02:42.4]} 10. Re1 {[%clk 0:02:54.1]} 10... f6 {[%clk 0:02:40.7]} 11.
exf6 {[%clk 0:02:48.4]} 11... Nxf6 {[%clk 0:02:41]} 12. b3 {[%clk 0:02:44.1]}
12... Bd6 {[%clk 0:02:37.2]} 13. Bb2 {[%clk 0:02:44]} 13... Qc7 {[%clk
0:02:34.2]} 14. Ne5 {[%clk 0:02:41.1]} 14... Nb4 {[%clk 0:01:59]} 15. Rc1 {[%clk
0:02:31]} 15... Qb6 {[%clk 0:01:54.1]} 16. Bb1 {[%clk 0:02:26.8]} 16... Bd7
{[%clk 0:01:14.6]} 17. Re3 {[%clk 0:01:32.3]} 17... Rac8 {[%clk 0:00:20.4]} 18.
Rxc8 {[%clk 0:01:17.5]} 18... Rxc8 {[%clk 0:00:20.6]} 19. a3 {[%clk 0:01:14.3]}
19... Nc6 {[%clk 0:00:18.9]} 20. Nxd7 {[%clk 0:01:13.5]} 20... Nxd7 {[%clk
0:00:19]} 21. Rxe6 {[%clk 0:01:04.3]} 21... Nxd4 {[%clk 0:00:15.1]} 22. Rxd6
{[%clk 0:00:28.9]} 22... Qxd6 {[%clk 0:00:12.2]} 23. Bxd4 {[%clk 0:00:29.2]}
23... Qf4 {[%clk 0:00:11.8]} 24. Be3 {[%clk 0:00:26]} 24... Qe5 {[%clk
0:00:12.1]} 25. Nf3 {[%clk 0:00:25]} 25... Qh5 {[%clk 0:00:10.8]} 26. h3 {[%clk
0:00:24.1]} 26... Nf6 {[%clk 0:00:11.1]} 27. Qd3 {[%clk 0:00:22.2]} 27... g6
{[%clk 0:00:09.3]} 28. Bg5 {[%clk 0:00:20]} 28... Rf8 {[%clk 0:00:09.5]} 29. Bc2
{[%clk 0:00:17]} 29... h6 {[%clk 0:00:07.2]} 30. Bxf6 {[%clk 0:00:15.4]} 30...
Rxf6 {[%clk 0:00:07.6]} 31. Kh2 {[%clk 0:00:15.3]} 31... Qf5 {[%clk 0:00:03.2]}
32. Qc3 {[%clk 0:00:14.3]} 32... Qf4+ {[%clk 0:00:02.7]} 33. Kg1 {[%clk
0:00:11.5]} 33... Kg7 {[%clk 0:00:01.6]} 34. Bd3 {[%clk 0:00:09.6]} 1-0

[Event "*** Titled Tuesday Blitz"]
[Site "Chess.com"]
[Date "2020.05.19"]
[Round "9"]
[White "gvanna"]
[Black "attack2mateU"]
[Result "0-1"]
[WhiteElo "2471"]
[BlackElo "2626"]
[TimeControl "180+1"]
[EndTime "13:46:49 PDT"]
[Termination "attack2mateU won by resignation"]

1. e4 {[%clk 0:03:00.9]} 1... c5 {[%clk 0:02:59.8]} 2. Nf3 {[%clk 0:03:01.1]}
2... d6 {[%clk 0:02:59.5]} 3. d4 {[%clk 0:03:01.3]} 3... cxd4 {[%clk 0:02:59.4]}
4. Nxd4 {[%clk 0:03:02.2]} 4... Nf6 {[%clk 0:02:59]} 5. Nc3 {[%clk 0:03:02.6]}
5... a6 {[%clk 0:02:58.9]} 6. Be3 {[%clk 0:03:02.4]} 6... e5 {[%clk 0:02:58.2]}
7. Nb3 {[%clk 0:03:02.1]} 7... Be6 {[%clk 0:02:56.9]} 8. f3 {[%clk 0:03:01.8]}
8... h5 {[%clk 0:02:55.7]} 9. Qd2 {[%clk 0:03:01.9]} 9... Nbd7 {[%clk
0:02:55.6]} 10. O-O-O {[%clk 0:03:01.8]} 10... Be7 {[%clk 0:02:48.5]} 11. Kb1
{[%clk 0:03:01.7]} 11... b5 {[%clk 0:02:47.9]} 12. h4 {[%clk 0:03:01.2]} 12...
Nb6 {[%clk 0:02:41.2]} 13. Bxb6 {[%clk 0:02:57.5]} 13... Qxb6 {[%clk 0:02:40.8]}
14. Nd5 {[%clk 0:02:57.9]} 14... Nxd5 {[%clk 0:02:35.2]} 15. exd5 {[%clk
0:02:58.8]} 15... Bd7 {[%clk 0:02:35.3]} 16. Bd3 {[%clk 0:02:52.2]} 16... b4
{[%clk 0:02:33.9]} 17. Rde1 {[%clk 0:02:36.6]} 17... a5 {[%clk 0:02:32.3]} 18.
f4 {[%clk 0:02:36.4]} 18... a4 {[%clk 0:02:31]} 19. Nc1 {[%clk 0:02:31.2]} 19...
Bf6 {[%clk 0:02:23.6]} 20. Qe3 {[%clk 0:02:01]} 20... Qc7 {[%clk 0:02:01]} 21.
Qe4 {[%clk 0:01:46]} 21... a3 {[%clk 0:01:59.2]} 22. Qxb4 {[%clk 0:01:16.8]}
22... axb2 {[%clk 0:01:49.6]} 23. Nb3 {[%clk 0:01:12.1]} 23... Ra4 {[%clk
0:01:47.3]} 24. Qd2 {[%clk 0:00:52.7]} 24... Qa7 {[%clk 0:01:42.4]} 25. fxe5
{[%clk 0:00:41.6]} 25... Bxe5 {[%clk 0:01:41.3]} 26. Rxe5+ {[%clk 0:00:41.6]}
26... dxe5 {[%clk 0:01:41.4]} 27. Kxb2 {[%clk 0:00:29.3]} 27... Rxa2+ {[%clk
0:01:39.6]} 28. Kb1 {[%clk 0:00:29.8]} 28... O-O {[%clk 0:01:35.8]} 29. Re1
{[%clk 0:00:25.5]} 29... Rb8 {[%clk 0:01:32.9]} 30. Qc3 {[%clk 0:00:22.6]} 30...
Rc8 {[%clk 0:01:14.2]} 31. Qxe5 {[%clk 0:00:20.8]} 31... Qa3 {[%clk 0:01:06.7]}
32. d6 {[%clk 0:00:18.1]} 32... Be6 {[%clk 0:00:34.7]} 33. d7 {[%clk 0:00:17.4]}
33... Bxd7 {[%clk 0:00:34.4]} 34. Re3 {[%clk 0:00:17.7]} 34... Be6 {[%clk
0:00:33.8]} 35. Rg3 {[%clk 0:00:17.9]} 35... Kf8 {[%clk 0:00:18.2]} 36. Qxg7+
{[%clk 0:00:17.7]} 36... Ke7 {[%clk 0:00:18.8]} 37. Qg5+ {[%clk 0:00:17.8]}
37... Kd7 {[%clk 0:00:17.2]} 38. Bb5+ {[%clk 0:00:17.6]} 38... Kc7 {[%clk
0:00:17.8]} 39. Qe5+ {[%clk 0:00:17.4]} 39... Kb6 {[%clk 0:00:18.1]} 40. Qd6+
{[%clk 0:00:12.9]} 40... Qxd6 {[%clk 0:00:17.6]} 41. Rg5 {[%clk 0:00:09.2]}
41... Rcxc2 {[%clk 0:00:15.5]} 0-1

[Event "*** Titled Tuesday Blitz"]
[Site "Chess.com"]
[Date "2020.05.19"]
[Round "9"]
[White "Harry_Rakkel"]
[Black "RojonR"]
[Result "0-1"]
[WhiteElo "2564"]
[BlackElo "2442"]
[TimeControl "180+1"]
[EndTime "13:46:49 PDT"]
[Termination "RojonR won by checkmate"]

1. e4 {[%clk 0:03:00.9]} 1... c5 {[%clk 0:02:59.6]} 2. Nf3 {[%clk 0:03:00]} 2...
Nc6 {[%clk 0:02:59.4]} 3. d4 {[%clk 0:02:58.8]} 3... cxd4 {[%clk 0:02:59.4]} 4.
Nxd4 {[%clk 0:02:59.3]} 4... d5 {[%clk 0:03:00.1]} 5. Bb5 {[%clk 0:02:48.5]}
5... dxe4 {[%clk 0:02:59.8]} 6. Nxc6 {[%clk 0:02:47.5]} 6... Qxd1+ {[%clk
0:02:59.5]} 7. Kxd1 {[%clk 0:02:48]} 7... a6 {[%clk 0:02:59.9]} 8. Nxe7+ {[%clk
0:02:29.8]} 8... Kxe7 {[%clk 0:02:57.1]} 9. Bc4 {[%clk 0:02:22]} 9... Be6 {[%clk
0:02:50.7]} 10. Nd2 {[%clk 0:02:16.9]} 10... Rd8 {[%clk 0:02:39.6]} 11. Bxe6
{[%clk 0:02:14.5]} 11... Kxe6 {[%clk 0:02:40.5]} 12. Ke2 {[%clk 0:02:12.8]}
12... f5 {[%clk 0:02:40.7]} 13. Nb3 {[%clk 0:02:11]} 13... Nf6 {[%clk
0:02:36.9]} 14. Bg5 {[%clk 0:02:03.3]} 14... Be7 {[%clk 0:02:31]} 15. Rad1
{[%clk 0:02:01.9]} 15... g6 {[%clk 0:01:52.7]} 16. c3 {[%clk 0:01:41.9]} 16...
Nd5 {[%clk 0:01:27.2]} 17. Nd4+ {[%clk 0:01:32.4]} 17... Kf7 {[%clk 0:01:25.7]}
18. Bc1 {[%clk 0:01:26.5]} 18... Rd7 {[%clk 0:01:14.2]} 19. g3 {[%clk
0:01:18.9]} 19... Rhd8 {[%clk 0:01:12.6]} 20. Nc2 {[%clk 0:01:08]} 20... Bf6
{[%clk 0:01:07.5]} 21. c4 {[%clk 0:00:50.6]} 21... Ne7 {[%clk 0:01:02.8]} 22.
Rxd7 {[%clk 0:00:45.1]} 22... Rxd7 {[%clk 0:01:03.7]} 23. Rd1 {[%clk 0:00:44.6]}
23... Rxd1 {[%clk 0:01:04.2]} 24. Kxd1 {[%clk 0:00:44.5]} 24... Nc6 {[%clk
0:01:00.4]} 25. Ne3 {[%clk 0:00:33.9]} 25... Ne5 {[%clk 0:00:58.4]} 26. b3
{[%clk 0:00:28.8]} 26... Nd3 {[%clk 0:00:54.5]} 27. Nd5 {[%clk 0:00:27.9]} 27...
Nxf2+ {[%clk 0:00:52.1]} 28. Ke2 {[%clk 0:00:28]} 28... Nd3 {[%clk 0:00:46.3]}
29. Be3 {[%clk 0:00:28.5]} 29... Be5 {[%clk 0:00:40.9]} 30. a4 {[%clk
0:00:23.2]} 30... h5 {[%clk 0:00:39.7]} 31. a5 {[%clk 0:00:18.3]} 31... h4
{[%clk 0:00:39.7]} 32. gxh4 {[%clk 0:00:17.1]} 32... Bxh2 {[%clk 0:00:39.8]} 33.
b4 {[%clk 0:00:14.1]} 33... f4 {[%clk 0:00:39.2]} 34. Bb6 {[%clk 0:00:13.8]}
34... f3+ {[%clk 0:00:37.4]} 35. Kf1 {[%clk 0:00:13.8]} 35... Ke6 {[%clk
0:00:21.4]} 36. Ne3 {[%clk 0:00:11.5]} 36... Nxb4 {[%clk 0:00:19]} 37. Ng4
{[%clk 0:00:08.1]} 37... Bf4 {[%clk 0:00:18.8]} 38. Nf2 {[%clk 0:00:07.8]} 38...
e3 {[%clk 0:00:16.8]} 39. Nh3 {[%clk 0:00:06.9]} 39... e2+ {[%clk 0:00:17.1]}
40. Ke1 {[%clk 0:00:07.1]} 40... Nd3# {[%clk 0:00:17.1]} 0-1

[Event "*** Titled Tuesday Blitz"]
[Site "Chess.com"]
[Date "2020.05.19"]
[Round "9"]
[White "bsnsun"]
[Black "PowerThinking2650"]
[Result "1-0"]
[WhiteElo "2494"]
[BlackElo "2308"]
[TimeControl "180+1"]
[EndTime "13:46:50 PDT"]
[Termination "bsnsun won by resignation"]

1. Nf3 {[%clk 0:03:00.9]} 1... Nf6 {[%clk 0:02:55.6]} 2. g3 {[%clk 0:03:01.1]}
2... g6 {[%clk 0:02:56.1]} 3. c4 {[%clk 0:03:01.3]} 3... Bg7 {[%clk 0:02:56.8]}
4. d4 {[%clk 0:03:01.5]} 4... d6 {[%clk 0:02:56.8]} 5. Bg2 {[%clk 0:03:01.7]}
5... O-O {[%clk 0:02:57.3]} 6. Nc3 {[%clk 0:03:02.2]} 6... Nbd7 {[%clk
0:02:57.7]} 7. O-O {[%clk 0:03:02.3]} 7... e5 {[%clk 0:02:58.2]} 8. e4 {[%clk
0:03:02.6]} 8... exd4 {[%clk 0:02:58.7]} 9. Nxd4 {[%clk 0:03:02.8]} 9... Re8
{[%clk 0:02:59.2]} 10. h3 {[%clk 0:03:03]} 10... Nc5 {[%clk 0:02:59.6]} 11. Re1
{[%clk 0:03:01.8]} 11... a5 {[%clk 0:03:00]} 12. Qc2 {[%clk 0:02:56.7]} 12...
Bd7 {[%clk 0:02:59.6]} 13. Be3 {[%clk 0:02:56.3]} 13... Qc8 {[%clk 0:02:59.7]}
14. Kh2 {[%clk 0:02:56.8]} 14... Re5 {[%clk 0:02:59.3]} 15. g4 {[%clk
0:02:26.2]} 15... Bxg4 {[%clk 0:02:58.4]} 16. hxg4 {[%clk 0:02:25.6]} 16... Qxg4
{[%clk 0:02:58.9]} 17. Qe2 {[%clk 0:02:17.6]} 17... Qh4+ {[%clk 0:02:54.4]} 18.
Kg1 {[%clk 0:02:16]} 18... Rh5 {[%clk 0:02:02.6]} 19. Nf3 {[%clk 0:02:14.4]}
19... Qg4 {[%clk 0:01:58.3]} 20. Nh2 {[%clk 0:02:01.6]} 20... Qh4 {[%clk
0:01:51.8]} 21. Nf3 {[%clk 0:02:00.8]} 21... Qg4 {[%clk 0:01:47.9]} 22. e5
{[%clk 0:01:54]} 22... Nfe4 {[%clk 0:01:35]} 23. Nxe4 {[%clk 0:01:14.6]} 23...
Nxe4 {[%clk 0:01:32.9]} 24. Bd4 {[%clk 0:01:08.3]} 24... Ng5 {[%clk 0:01:15.6]}
25. Nxg5 {[%clk 0:00:48.2]} 25... Qxg5 {[%clk 0:01:01.8]} 26. Rad1 {[%clk
0:00:27.3]} 26... dxe5 {[%clk 0:00:58.5]} 27. Be3 {[%clk 0:00:27.4]} 27... Qh4
{[%clk 0:00:58.5]} 28. Qf3 {[%clk 0:00:27.2]} 28... c6 {[%clk 0:00:41.2]} 29.
Rd7 {[%clk 0:00:27]} 29... Qxc4 {[%clk 0:00:40.3]} 30. Rxb7 {[%clk 0:00:23.7]}
30... Rc8 {[%clk 0:00:27.9]} 31. b3 {[%clk 0:00:22.8]} 31... Qe6 {[%clk
0:00:22.9]} 32. Bc5 {[%clk 0:00:18.9]} 32... f5 {[%clk 0:00:21.6]} 33. Re7
{[%clk 0:00:17.9]} 33... Qf6 {[%clk 0:00:12.7]} 34. R7xe5 {[%clk 0:00:16.7]}
34... Qh4 {[%clk 0:00:11.3]} 35. Re7 {[%clk 0:00:16.3]} 35... Qh2+ {[%clk
0:00:11.1]} 36. Kf1 {[%clk 0:00:16.7]} 36... Rd8 {[%clk 0:00:09.6]} 37. Qe3
{[%clk 0:00:15.3]} 37... Bf6 {[%clk 0:00:08.5]} 38. Qe6+ {[%clk 0:00:15]} 1-0

[Event "*** Titled Tuesday Blitz"]
[Site "Chess.com"]
[Date "2020.05.19"]
[Round "9"]
[White "Shuvalov"]
[Black "m_ezat"]
[Result "1-0"]
[WhiteElo "2444"]
[BlackElo "2544"]
[TimeControl "180+1"]
[EndTime "13:46:51 PDT"]
[Termination "Shuvalov won by checkmate"]

1. Nf3 {[%clk 0:03:00.9]} 1... Nf6 {[%clk 0:02:59.5]} 2. c4 {[%clk 0:03:01]}
2... g6 {[%clk 0:02:59.9]} 3. d4 {[%clk 0:03:00.3]} 3... Bg7 {[%clk 0:03:00.2]}
4. Nc3 {[%clk 0:03:00.7]} 4... O-O {[%clk 0:03:00.9]} 5. e4 {[%clk 0:03:00.8]}
5... d6 {[%clk 0:03:01.5]} 6. Be2 {[%clk 0:03:01.1]} 6... e5 {[%clk 0:03:00.6]}
7. O-O {[%clk 0:03:01]} 7... exd4 {[%clk 0:03:00.3]} 8. Nxd4 {[%clk 0:03:00.6]}
8... Re8 {[%clk 0:03:01]} 9. f3 {[%clk 0:02:58.8]} 9... c6 {[%clk 0:03:01.3]}
10. Nc2 {[%clk 0:02:56.2]} 10... a5 {[%clk 0:02:47.3]} 11. Be3 {[%clk
0:02:52.2]} 11... d5 {[%clk 0:02:25.9]} 12. cxd5 {[%clk 0:02:51.3]} 12... cxd5
{[%clk 0:02:25.4]} 13. Bb5 {[%clk 0:02:31.4]} 13... Bd7 {[%clk 0:02:22.5]} 14.
Bxd7 {[%clk 0:02:28.6]} 14... Qxd7 {[%clk 0:02:12.9]} 15. exd5 {[%clk
0:02:22.5]} 15... Na6 {[%clk 0:02:12.8]} 16. Qd2 {[%clk 0:02:08.3]} 16... Nb4
{[%clk 0:02:11.7]} 17. Bf2 {[%clk 0:01:41.1]} 17... Rac8 {[%clk 0:01:30.4]} 18.
Rad1 {[%clk 0:01:32]} 18... h5 {[%clk 0:01:21]} 19. d6 {[%clk 0:01:16.5]} 19...
Rc6 {[%clk 0:01:17.4]} 20. Nxb4 {[%clk 0:01:10.4]} 20... axb4 {[%clk 0:01:17]}
21. Nb5 {[%clk 0:01:10.2]} 21... Ra8 {[%clk 0:01:05.6]} 22. Qxb4 {[%clk
0:01:05.3]} 22... Rxa2 {[%clk 0:01:04.5]} 23. Rfe1 {[%clk 0:01:01.9]} 23... Ne8
{[%clk 0:00:45.5]} 24. Re7 {[%clk 0:00:34]} 24... Qd8 {[%clk 0:00:45.5]} 25. d7
{[%clk 0:00:32]} 25... Nf6 {[%clk 0:00:40.9]} 26. Qb3 {[%clk 0:00:19.8]} 26...
Qxe7 {[%clk 0:00:35.8]} 27. d8=Q+ {[%clk 0:00:19.9]} 27... Qxd8 {[%clk
0:00:36.2]} 28. Rxd8+ {[%clk 0:00:20.8]} 28... Kh7 {[%clk 0:00:36.8]} 29. Qxa2
{[%clk 0:00:20.8]} 29... Rc1+ {[%clk 0:00:36.8]} 30. Be1 {[%clk 0:00:21.2]}
30... Rxe1+ {[%clk 0:00:37.2]} 31. Kf2 {[%clk 0:00:21.9]} 31... Rc1 {[%clk
0:00:36.2]} 32. Qxf7 {[%clk 0:00:21.2]} 32... Rc2+ {[%clk 0:00:36.3]} 33. Kf1
{[%clk 0:00:21.1]} 33... h4 {[%clk 0:00:29.7]} 34. Nd4 {[%clk 0:00:18.7]} 34...
Rc1+ {[%clk 0:00:26.9]} 35. Ke2 {[%clk 0:00:19.1]} 35... Rc5 {[%clk 0:00:23]}
36. Ne6 {[%clk 0:00:17.8]} 36... Re5+ {[%clk 0:00:23.5]} 37. Kf1 {[%clk
0:00:17.7]} 37... Nh5 {[%clk 0:00:20.9]} 38. Nxg7 {[%clk 0:00:16.1]} 38... Nxg7
{[%clk 0:00:20]} 39. Rd7 {[%clk 0:00:16.4]} 39... Kh6 {[%clk 0:00:19.9]} 40.
Qxg7+ {[%clk 0:00:16.6]} 40... Kg5 {[%clk 0:00:20.6]} 41. Qxe5+ {[%clk
0:00:17.4]} 41... Kh6 {[%clk 0:00:20.1]} 42. Rg7 {[%clk 0:00:17.4]} 42... h3
{[%clk 0:00:19]} 43. Qf6 {[%clk 0:00:18.3]} 43... hxg2+ {[%clk 0:00:18.2]} 44.
Kxg2 {[%clk 0:00:19.2]} 44... b6 {[%clk 0:00:18.4]} 45. Qxg6# {[%clk 0:00:19.6]}
1-0

[Event "*** Titled Tuesday Blitz"]
[Site "Chess.com"]
[Date "2020.05.19"]
[Round "9"]
[White "FairChess_on_YouTube"]
[Black "viviania"]
[Result "0-1"]
[WhiteElo "3019"]
[BlackElo "2974"]
[TimeControl "180+1"]
[EndTime "13:46:52 PDT"]
[Termination "viviania won by checkmate"]

1. e4 {[%clk 0:03:00.9]} 1... e6 {[%clk 0:02:59.5]} 2. d4 {[%clk 0:03:00.7]}
2... d5 {[%clk 0:02:59.5]} 3. Nc3 {[%clk 0:03:01.3]} 3... Bb4 {[%clk 0:02:58.7]}
4. Qd3 {[%clk 0:02:59.4]} 4... Ne7 {[%clk 0:02:53.4]} 5. a3 {[%clk 0:02:58.4]}
5... Bxc3+ {[%clk 0:02:52]} 6. bxc3 {[%clk 0:02:59.3]} 6... O-O {[%clk
0:02:47.5]} 7. Nf3 {[%clk 0:02:59.2]} 7... b6 {[%clk 0:02:47.3]} 8. Qe3 {[%clk
0:02:49.7]} 8... Ba6 {[%clk 0:02:45.2]} 9. Bd3 {[%clk 0:02:49.6]} 9... Qd7
{[%clk 0:02:21.2]} 10. Ne5 {[%clk 0:02:40.5]} 10... Qa4 {[%clk 0:02:20.1]} 11.
Qg3 {[%clk 0:02:38.9]} 11... Bxd3 {[%clk 0:02:00.5]} 12. cxd3 {[%clk 0:02:34.4]}
12... Nbc6 {[%clk 0:02:00.4]} 13. Bf4 {[%clk 0:02:00.8]} 13... Rac8 {[%clk
0:01:02]} 14. O-O {[%clk 0:01:50.5]} 14... Nxe5 {[%clk 0:00:59.6]} 15. Bxe5
{[%clk 0:01:50.1]} 15... Ng6 {[%clk 0:00:59.6]} 16. f4 {[%clk 0:01:44.5]} 16...
f6 {[%clk 0:00:33.9]} 17. f5 {[%clk 0:01:32.2]} 17... exf5 {[%clk 0:00:21.8]}
18. exf5 {[%clk 0:01:32.2]} 18... Ne7 {[%clk 0:00:21.9]} 19. Bxc7 {[%clk
0:01:07.5]} 19... Qd7 {[%clk 0:00:21.6]} 20. Bd6 {[%clk 0:01:06.7]} 20... Nxf5
{[%clk 0:00:16]} 21. Rxf5 {[%clk 0:01:05.9]} 21... Qxf5 {[%clk 0:00:15.8]} 22.
Bxf8 {[%clk 0:01:06.1]} 22... Kxf8 {[%clk 0:00:15.7]} 23. Re1 {[%clk 0:01:00.1]}
23... h6 {[%clk 0:00:14.5]} 24. h3 {[%clk 0:00:50.3]} 24... Qd7 {[%clk
0:00:12.7]} 25. Rc1 {[%clk 0:00:34.8]} 25... Kf7 {[%clk 0:00:12.8]} 26. Qf3
{[%clk 0:00:31.9]} 26... Qe6 {[%clk 0:00:11.2]} 27. Kf2 {[%clk 0:00:30.1]} 27...
Qd6 {[%clk 0:00:11]} 28. a4 {[%clk 0:00:27.5]} 28... Rc7 {[%clk 0:00:10.2]} 29.
Qf5 {[%clk 0:00:25]} 29... Re7 {[%clk 0:00:09.8]} 30. Kf3 {[%clk 0:00:15.2]}
30... g6 {[%clk 0:00:07.4]} 31. Qc8 {[%clk 0:00:13]} 31... h5 {[%clk 0:00:05.7]}
32. c4 {[%clk 0:00:09.5]} 32... h4 {[%clk 0:00:02.9]} 33. Qg4 {[%clk 0:00:06.7]}
33... g5 {[%clk 0:00:03]} 34. Qf5 {[%clk 0:00:06]} 34... Qg3# {[%clk 0:00:01.1]}
0-1

[Event "*** Titled Tuesday Blitz"]
[Site "Chess.com"]
[Date "2020.05.19"]
[Round "9"]
[White "Shield12"]
[Black "SketchyMoves"]
[Result "1-0"]
[WhiteElo "2822"]
[BlackElo "2647"]
[TimeControl "180+1"]
[EndTime "13:46:53 PDT"]
[Termination "Shield12 won on time"]

1. e4 {[%clk 0:03:00.9]} 1... c6 {[%clk 0:02:56.3]} 2. Nf3 {[%clk 0:03:00.3]}
2... d5 {[%clk 0:02:56.6]} 3. d3 {[%clk 0:03:01.2]} 3... dxe4 {[%clk 0:02:50.4]}
4. dxe4 {[%clk 0:03:02.1]} 4... Qxd1+ {[%clk 0:02:50.4]} 5. Kxd1 {[%clk
0:03:03]} 5... g6 {[%clk 0:02:50]} 6. a4 {[%clk 0:03:02.4]} 6... Bg7 {[%clk
0:02:50.1]} 7. c3 {[%clk 0:03:01.6]} 7... Nf6 {[%clk 0:02:46.1]} 8. Nbd2 {[%clk
0:02:58.5]} 8... O-O {[%clk 0:02:43.1]} 9. h3 {[%clk 0:02:58.6]} 9... Nbd7
{[%clk 0:02:42.6]} 10. Bd3 {[%clk 0:02:56.1]} 10... Nc5 {[%clk 0:02:41]} 11. Bc2
{[%clk 0:02:55.9]} 11... Rd8 {[%clk 0:02:37.2]} 12. Ke2 {[%clk 0:02:55.6]} 12...
a5 {[%clk 0:02:26.6]} 13. Rd1 {[%clk 0:02:50.4]} 13... b6 {[%clk 0:02:26.3]} 14.
Nd4 {[%clk 0:02:43.4]} 14... Ba6+ {[%clk 0:02:13.7]} 15. Ke3 {[%clk 0:02:43.5]}
15... Rd6 {[%clk 0:02:00.5]} 16. f4 {[%clk 0:02:27.3]} 16... Bh6 {[%clk
0:01:32.2]} 17. N2f3 {[%clk 0:02:26]} 17... Ne6 {[%clk 0:01:19.5]} 18. Nxe6
{[%clk 0:02:13.5]} 18... Rxe6 {[%clk 0:01:20.4]} 19. Nd4 {[%clk 0:01:57.1]}
19... Rd6 {[%clk 0:01:16.9]} 20. e5 {[%clk 0:01:57.3]} 20... Nd5+ {[%clk
0:01:10.8]} 21. Kf3 {[%clk 0:01:57.7]} 21... Rd7 {[%clk 0:01:07.5]} 22. Be4
{[%clk 0:01:46]} 22... Bb7 {[%clk 0:01:03]} 23. g4 {[%clk 0:01:38.8]} 23... e6
{[%clk 0:00:55.8]} 24. Nc2 {[%clk 0:01:16.6]} 24... Rad8 {[%clk 0:00:50.9]} 25.
Na3 {[%clk 0:01:12.1]} 25... Bf8 {[%clk 0:00:39.2]} 26. Nc4 {[%clk 0:01:09.6]}
26... Bc5 {[%clk 0:00:39.7]} 27. f5 {[%clk 0:01:07.7]} 27... Ba6 {[%clk
0:00:34.5]} 28. Ne3 {[%clk 0:00:39.3]} 28... exf5 {[%clk 0:00:30.6]} 29. gxf5
{[%clk 0:00:39]} 29... Re8 {[%clk 0:00:14.2]} 30. Bxd5 {[%clk 0:00:23.5]} 30...
Bxe3 {[%clk 0:00:11.8]} 31. Bxe3 {[%clk 0:00:20.5]} 31... cxd5 {[%clk
0:00:11.1]} 32. Kf4 {[%clk 0:00:19.6]} 32... g5+ {[%clk 0:00:08.8]} 33. Kxg5
{[%clk 0:00:19.3]} 33... Rxe5 {[%clk 0:00:09]} 34. Bxb6 {[%clk 0:00:18.5]} 34...
h6+ {[%clk 0:00:06.9]} 35. Kf6 {[%clk 0:00:15.7]} 35... Re4 {[%clk 0:00:04.8]}
36. Rg1+ {[%clk 0:00:15.7]} 36... Kh7 {[%clk 0:00:03.3]} 37. Rg7+ {[%clk
0:00:14.4]} 37... Kh8 {[%clk 0:00:03.8]} 38. Bc5 {[%clk 0:00:13.5]} 38... Be2
{[%clk 0:00:02]} 39. Rag1 {[%clk 0:00:12.6]} 1-0